bitfinex/quotes_BTCUSD_20241003
["timestamp","ask_amount","ask_price","bid_price","bid_amount"]
[1727921499085,0.326153,61321.0,61312.0,0.358949]
[1727921499086,0.163078,61321.0,61317.0,0.163085]
[1727921499483,0.326136,61324.0,61314.0,0.326187]
[1727921499708,0.02556816,61321.0,61314.0,0.326187]
[1727921499922,0.18864416,61321.0,61317.0,0.163084]
[1727921500564,0.18864416,61321.0,61312.0,0.358949]
[1727921500565,0.02556816,61321.0,61316.0,0.326176]
[1727921500792,0.02556816,61321.0,61319.0,0.16308]
[1727921501038,0.02556816,61321.0,61316.0,0.03275]
[1727921501039,0.19164616,61321.0,61316.0,0.195839]
[1727921501248,0.163079,61320.0,61316.0,0.195839]
[1727921501455,0.000817,61318.0,61316.0,0.195839]
[1727921502111,0.163086,61317.0,61315.0,0.03275]
[1727921502330,0.000817,61318.0,61315.0,0.195842]
[1727921502769,0.000817,61318.0,61316.0,0.005]
[1727921503213,0.000817,61318.0,61316.0,0.004]
[1727921503441,0.163086,61317.0,61316.0,0.004]
[1727921503692,0.163089,61316.0,61315.0,0.03675]
[1727921503907,0.163089,61316.0,61315.0,0.03875]
[1727921504123,0.163089,61316.0,61315.0,0.03675]
[1727921504773,0.163095,61314.0,61311.0,0.03275]
[1727921505214,0.404786,61318.0,61311.0,0.03275]
[1727921505426,0.404786,61318.0,61310.0,0.24491195]
[1727921505427,0.163095,61314.0,61313.0,0.03275]
[1727921506288,0.164095,61314.0,61313.0,0.03275]
[1727921506499,0.163097,61313.0,61312.0,0.03275]
[1727921507375,0.163108,61309.0,61308.0,0.001634]
[1727921508782,0.17308751,61309.0,61308.0,0.001634]
[1727921509745,0.17308751,61309.0,61308.0,0.012634]
[1727921509978,0.17308751,61309.0,61308.0,0.007634]
[1727921510470,0.17308751,61309.0,61308.0,0.010634]
[1727921511252,0.17308751,61309.0,61308.0,0.004634]
[1727921511506,0.17308751,61309.0,61308.0,0.008634]
[1727921511743,0.19866061,61309.0,61308.0,0.008634]
[1727921512013,0.19866061,61309.0,61308.0,0.001634]
[1727921512268,0.19866061,61309.0,61308.0,0.003634]
[1727921512506,0.19866061,61309.0,61308.0,0.004634]
[1727921512804,0.19866061,61309.0,61308.0,0.003634]
[1727921514192,0.17308751,61309.0,61308.0,0.006634]
[1727921515861,0.00997951,61309.0,61308.0,0.006634]
[1727921516086,0.000817,61314.0,61308.0,0.086334]
[1727921516315,0.000817,61314.0,61309.0,0.326214]
[1727921516537,0.163911,61314.0,61309.0,0.326214]
[1727921517476,0.000817,61314.0,61311.0,0.163102]
[1727921517700,0.02557126,61313.0,61311.0,0.163102]
[1727921517960,0.02557126,61313.0,61310.0,0.163105]
[1727921518187,0.02557126,61313.0,61311.0,0.163102]
[1727921518644,0.02557126,61313.0,61309.0,0.326214]
[1727921519096,0.1631,61312.0,61308.0,0.081334]
[1727921519325,0.163103,61311.0,61308.0,0.081334]
[1727921519568,0.163106,61310.0,61308.0,0.001634]
[1727921519823,0.02657126,61313.0,61308.0,0.001634]
[1727921520059,0.02557126,61313.0,61309.0,0.163105]
[1727921520313,0.18866926,61313.0,61309.0,0.163105]
[1727921520769,0.02557126,61313.0,61312.0,0.1631]
[1727921521547,0.02557126,61313.0,61309.0,0.326215]
[1727921521548,0.02557126,61313.0,61310.0,0.163103]
[1727921521768,0.163106,61310.0,61308.0,0.001634]
[1727921522005,0.3262,61312.0,61309.0,0.0197499]
[1727921522006,0.163104,61311.0,61309.0,0.0197499]
[1727921522249,0.02557126,61313.0,61308.0,0.001634]
[1727921522250,0.37925087,61313.0,61308.0,0.001634]
[1727921522497,0.163108,61309.0,61308.0,0.001634]
[1727921522995,0.163108,61309.0,61308.0,0.004634]
[1727921523477,0.163108,61309.0,61308.0,0.001634]
[1727921523942,0.17307733,61309.0,61308.0,0.001634]
[1727921525372,0.17307733,61309.0,61308.0,0.005634]
[1727921525589,0.17307733,61309.0,61308.0,0.008634]
[1727921526043,0.17307733,61309.0,61308.0,0.001634]
[1727921526470,0.17307733,61309.0,61308.0,0.002634]
[1727921527149,0.34545694,61309.0,61308.0,0.002634]
[1727921527381,0.76047767,61309.0,61308.0,0.004634]
[1727921527612,0.78605341,61309.0,61308.0,0.004634]
[1727921527861,0.78605341,61309.0,61308.0,0.002634]
[1727921528137,0.65573268,61309.0,61308.0,0.002634]
[1727921528379,0.65373268,61309.0,61308.0,0.002634]
[1727921528618,0.80257606,61309.0,61308.0,0.001634]
[1727921528867,0.82557606,61309.0,61308.0,0.001634]
[1727921529129,0.82557573,61309.0,61308.0,0.002634]
[1727921529369,0.85091939,61309.0,61308.0,0.003634]
[1727921529807,0.68773268,61309.0,61308.0,0.003634]
[1727921531340,0.68773268,61309.0,61301.0,0.001634]
[1727921531341,0.165126,61302.0,61301.0,0.001634]
[1727921531562,0.60860561,61302.0,61301.0,0.001634]
[1727921531785,0.74129436,61302.0,61301.0,0.001634]
[1727921532038,0.7898751,61302.0,61301.0,0.001634]
[1727921532259,0.66763162,61302.0,61301.0,0.001634]
[1727921532689,0.95301383,61302.0,61301.0,0.001634]
[1727921533113,0.96201383,61302.0,61301.0,0.002634]
[1727921533375,0.83981833,61302.0,61301.0,0.002634]
[1727921533836,0.77434524,61302.0,61301.0,0.002634]
[1727921534049,0.75134524,61302.0,61301.0,0.002634]
[1727921534266,0.70631393,61302.0,61301.0,0.003634]
[1727921534733,0.70831393,61302.0,61301.0,0.003634]
[1727921535179,0.63505088,61302.0,61301.0,0.003634]
[1727921535624,0.84706381,61302.0,61301.0,0.003634]
[1727921535867,0.002,61293.0,61275.0,0.27766195]
[1727921536060,0.43553761,61290.0,61275.0,0.27766195]
[1727921536516,0.163177,61283.0,61275.0,0.27766195]
[1727921537237,0.163196,61276.0,61275.0,0.27766195]
[1727921537715,0.18878108,61276.0,61275.0,0.27766195]
[1727921537951,0.19915783,61276.0,61275.0,0.03275]
[1727921538166,0.03596183,61276.0,61275.0,0.03275]
[1727921539235,0.03696183,61276.0,61275.0,0.03275]
[1727921539450,0.02658508,61276.0,61275.0,0.03275]
[1727921539723,0.03596183,61276.0,61275.0,0.03275]
[1727921539946,0.03796183,61276.0,61275.0,0.44885995]
[1727921540166,0.03796183,61276.0,61275.0,0.282384]
[1727921540384,0.02658508,61276.0,61275.0,0.366784]
[1727921540828,0.02658508,61276.0,61275.0,0.370784]
[1727921540829,0.02758508,61276.0,61275.0,0.370784]
[1727921541074,0.02758508,61276.0,61275.0,0.207586]
[1727921541289,0.03695342,61276.0,61275.0,0.111186]
[1727921541527,0.03695342,61276.0,61275.0,0.115186]
[1727921541746,0.20114942,61276.0,61275.0,0.115186]
[1727921541967,0.20014942,61276.0,61275.0,0.115186]
[1727921542203,0.20114942,61276.0,61275.0,0.115186]
[1727921542925,0.20014942,61276.0,61275.0,0.111186]
[1727921543142,0.03695342,61276.0,61275.0,0.111186]
[1727921543371,0.03795342,61276.0,61275.0,0.282384]
[1727921543805,0.02758508,61276.0,61275.0,0.376684]
[1727921544447,0.002,61276.0,61275.0,0.376684]
[1727921546720,0.002,61276.0,61275.0,0.54906361]
[1727921547160,0.001,61276.0,61275.0,0.54106361]
[1727921547408,0.001,61276.0,61275.0,0.71425032]
[1727921547620,0.326292,61295.0,61286.0,0.163168]
[1727921547621,0.163159,61290.0,61286.0,0.163168]
[1727921547840,0.163159,61290.0,61287.0,0.0163168]
[1727921548058,0.01037968,61289.0,61287.0,0.0163168]
[1727921548972,0.02558005,61289.0,61287.0,0.0163168]
[1727921549192,0.02558005,61289.0,61288.0,0.0827]
[1727921549401,0.02558005,61289.0,61288.0,0.337664]
[1727921550477,0.02558005,61289.0,61288.0,0.1745]
[1727921550689,0.02558005,61289.0,61288.0,0.337664]
[1727921550905,0.02558005,61289.0,61288.0,0.342664]
[1727921551787,0.02558005,61289.0,61288.0,0.347664]
[1727921553331,0.163959,61297.0,61288.0,0.1845]
[1727921553541,0.163958,61297.0,61291.0,0.326306]
[1727921553755,0.01040196,61296.0,61293.0,0.163149]
[1727921554464,0.326297,61294.0,61288.0,0.0877]
[1727921554696,0.16316,61290.0,61288.0,0.0827]
[1727921554963,0.489462,61292.0,61288.0,0.0827]
[1727921555172,0.01041027,61289.0,61288.0,0.0827]
[1727921555379,0.163155,61292.0,61288.0,0.0827]
[1727921555596,0.01041214,61289.0,61288.0,0.0827]
[1727921555881,0.163158,61291.0,61288.0,0.0827]
[1727921556103,0.01039542,61289.0,61288.0,0.245863]
[1727921556349,0.326292,61295.0,61289.0,0.16316]
[1727921556350,0.163151,61293.0,61289.0,0.16316]
[1727921556775,0.02557888,61289.0,61288.0,0.249864]
[1727921557020,0.02557888,61289.0,61288.0,0.287614]
[1727921557424,0.163148,61294.0,61290.0,0.163158]
[1727921560043,0.163148,61294.0,61290.0,0.164158]
[1727921560497,0.163156,61291.0,61290.0,0.001]
[1727921561651,0.02557833,61294.0,61290.0,0.001]
[1727921562124,0.163154,61292.0,61290.0,0.004]
[1727921562356,0.163154,61292.0,61290.0,0.008]
[1727921562796,0.163154,61292.0,61290.0,0.004]
[1727921563017,0.02557833,61294.0,61290.0,0.004]
[1727921563244,0.163151,61293.0,61290.0,0.005]
[1727921563681,0.163151,61293.0,61290.0,0.004]
[1727921563909,0.163153,61292.0,61290.0,0.004]
[1727921564136,0.163153,61292.0,61290.0,0.002]
[1727921564561,0.02557833,61294.0,61290.0,0.002]
[1727921564805,0.18872733,61294.0,61290.0,0.002]
[1727921564992,0.163151,61293.0,61290.0,0.002]
[1727921565263,0.163153,61292.0,61290.0,0.002]
[1727921565481,0.163153,61292.0,61290.0,0.003]
[1727921565907,0.163153,61292.0,61290.0,0.002]
[1727921566123,0.163153,61292.0,61288.0,0.44246095]
[1727921566346,0.163153,61292.0,61290.0,0.002]
[1727921566562,0.163156,61291.0,61290.0,0.002]
[1727921566998,0.16316,61290.0,61288.0,0.001636]
[1727921567428,0.326309,61292.0,61288.0,0.001636]
[1727921567640,0.326309,61292.0,61290.0,0.002]
[1727921567869,0.163156,61291.0,61288.0,0.001636]
[1727921568519,0.163156,61291.0,61288.0,0.164799]
[1727921568742,0.01042197,61290.0,61288.0,0.164799]
[1727921568967,0.01042197,61290.0,61288.0,0.001636]
[1727921569209,0.163161,61289.0,61288.0,0.001636]
[1727921569639,0.17358484,61289.0,61288.0,0.001636]
[1727921570546,0.01042384,61289.0,61288.0,0.001636]
[1727921570974,0.01042384,61289.0,61288.0,0.002636]
[1727921571188,0.01042384,61289.0,61288.0,0.001636]
[1727921571406,0.01042384,61289.0,61288.0,0.005636]
[1727921571671,0.01042384,61289.0,61288.0,0.010636]
[1727921571891,0.01042384,61289.0,61288.0,0.006636]
[1727921572104,0.17358484,61289.0,61288.0,0.006636]
[1727921572992,0.17358484,61289.0,61288.0,0.011636]
[1727921576755,0.01042384,61289.0,61288.0,0.011636]
[1727921576972,0.163157,61291.0,61288.0,0.011636]
[1727921577211,0.01041956,61289.0,61288.0,0.011636]
[1727921577396,0.163157,61291.0,61288.0,0.011636]
[1727921577654,0.01041956,61289.0,61288.0,0.011636]
[1727921577866,0.163157,61291.0,61288.0,0.001636]
[1727921578078,0.01041956,61289.0,61288.0,0.001636]
[1727921578293,0.163157,61291.0,61288.0,0.003636]
[1727921578507,0.01041956,61289.0,61288.0,0.003636]
[1727921578730,0.02557833,61294.0,61288.0,0.57487395]
[1727921578956,0.02557833,61294.0,61288.0,0.327962]
[1727921579218,0.01041769,61293.0,61290.0,0.163157]
[1727921580588,0.17356869,61293.0,61289.0,0.163159]
[1727921580827,0.17356869,61293.0,61290.0,0.001]
[1727921581266,0.17356869,61293.0,61290.0,0.164158]
[1727921581479,0.01041769,61293.0,61290.0,0.164158]
[1727921582211,0.01041769,61293.0,61290.0,0.163158]
[1727921583398,0.01041769,61293.0,61290.0,0.164158]
[1727921583885,0.01041769,61293.0,61290.0,0.163158]
[1727921584124,0.01041769,61293.0,61290.0,0.164158]
[1727921584362,0.01041769,61293.0,61290.0,0.165158]
[1727921585523,0.01041769,61293.0,61290.0,0.166794]
[1727921586257,0.01041769,61293.0,61290.0,0.003636]
[1727921586477,0.163154,61292.0,61290.0,0.003636]
[1727921586923,0.01171214,61291.0,61290.0,0.003636]
[1727921587153,0.163156,61291.0,61290.0,0.003636]
[1727921587403,0.17487048,61291.0,61290.0,0.003636]
[1727921587684,0.17487048,61291.0,61290.0,0.002636]
[1727921587907,0.17487048,61291.0,61290.0,0.004636]
[1727921588133,0.17487048,61291.0,61290.0,0.01958]
[1727921588346,0.17487048,61291.0,61290.0,0.01858]
[1727921588573,0.17587048,61291.0,61290.0,0.01858]
[1727921588788,0.17587048,61291.0,61290.0,0.004636]
[1727921589276,0.17587048,61291.0,61290.0,0.001636]
[1727921589277,0.17487048,61291.0,61290.0,0.001636]
[1727921589483,0.40185223,61291.0,61290.0,0.001636]
[1727921589707,0.48335223,61291.0,61290.0,0.001636]
[1727921589919,0.81636857,61291.0,61290.0,0.001636]
[1727921590137,0.66953894,61291.0,61290.0,0.001636]
[1727921590649,0.64395719,61291.0,61290.0,0.001636]
[1727921590872,0.64395719,61291.0,61288.0,0.001636]
[1727921590873,0.61944061,61289.0,61288.0,0.001636]
[1727921591090,0.78472971,61289.0,61288.0,0.001636]
[1727921591310,0.79632365,61289.0,61288.0,0.001636]
[1727921591539,0.63103455,61289.0,61288.0,0.001636]
[1727921592000,0.60603455,61289.0,61288.0,0.001636]
[1727921592206,0.36215943,61289.0,61288.0,0.002636]
[1727921592419,0.17475494,61289.0,61288.0,0.001636]
[1727921592635,0.17475494,61289.0,61288.0,0.002636]
[1727921593278,0.17475494,61289.0,61288.0,0.001636]
[1727921593496,0.17475494,61289.0,61288.0,0.002636]
[1727921593710,0.372717,61289.0,61288.0,0.002636]
[1727921594378,0.21433739,61289.0,61288.0,0.002636]
[1727921594613,0.20033739,61289.0,61288.0,0.002636]
[1727921595032,0.21033739,61289.0,61288.0,0.002636]
[1727921597307,0.382717,61289.0,61288.0,0.002636]
[1727921597523,0.35713455,61289.0,61288.0,0.002636]
[1727921599243,0.43943455,61289.0,61288.0,0.002636]
[1727921600130,0.48837042,61289.0,61288.0,0.002636]
[1727921600564,0.43943455,61289.0,61288.0,0.002636]
[1727921600777,0.46501825,61289.0,61288.0,0.002636]
[1727921601007,0.61395412,61289.0,61288.0,0.002636]
[1727921601222,0.56501825,61289.0,61288.0,0.002636]
[1727921601446,0.61395412,61289.0,61288.0,0.002636]
[1727921601662,0.56501825,61289.0,61288.0,0.002636]
[1727921602110,0.61395412,61289.0,61288.0,0.002636]
[1727921602358,0.56501825,61289.0,61288.0,0.002636]
[1727921603453,0.89598888,61289.0,61288.0,0.002636]
[1727921603698,0.163196,61276.0,61275.0,0.001636]
[1727921603923,0.40893608,61276.0,61275.0,0.001636]
[1727921604145,0.34709906,61276.0,61275.0,0.001636]
[1727921604410,0.70809973,61276.0,61275.0,0.001636]
[1727921604620,0.43559661,61268.0,61267.0,0.001634]
[1727921605065,0.51865861,61268.0,61267.0,0.001634]
[1727921605300,0.54165861,61268.0,61267.0,0.001634]
[1727921605513,0.8670875,61268.0,61267.0,0.001634]
[1727921605739,0.7156119,61268.0,61267.0,0.001634]
[1727921605951,0.75010121,61268.0,61267.0,0.002634]
[1727921606172,0.75210121,61268.0,61267.0,0.002634]
[1727921606608,0.65433081,61268.0,61267.0,0.002634]
[1727921607290,0.64433081,61268.0,61267.0,0.001634]
[1727921607567,0.85696446,61268.0,61267.0,0.001634]
[1727921607797,0.84296446,61268.0,61267.0,0.001634]
[1727921608252,0.85696446,61268.0,61267.0,0.001634]
[1727921608474,0.82896446,61268.0,61267.0,0.001634]
[1727921608706,0.81736924,61268.0,61267.0,0.001634]
[1727921608926,0.83136924,61268.0,61267.0,0.001634]
[1727921610518,0.81736924,61268.0,61267.0,0.001634]
[1727921610792,0.83136924,61268.0,61267.0,0.001634]
[1727921611048,0.83136924,61268.0,61258.0,0.001632]
[1727921611049,0.165241,61259.0,61258.0,0.001632]
[1727921611294,0.46062061,61259.0,61258.0,0.001632]
[1727921611534,0.49814403,61259.0,61258.0,0.001632]
[1727921611812,0.002,61248.0,61247.0,0.001634]
[1727921612062,0.43764961,61248.0,61247.0,0.001634]
[1727921612343,0.002,61246.0,61241.0,0.24491195]
[1727921612638,0.002,61246.0,61231.0,0.001634]
[1727921612639,0.265291,61240.0,61231.0,0.001634]
[1727921613126,0.27709496,61240.0,61231.0,0.001634]
[1727921613398,0.30009496,61240.0,61231.0,0.001634]
[1727921613662,0.41265552,61240.0,61231.0,0.001634]
[1727921614658,0.42665552,61240.0,61231.0,0.001634]
[1727921615456,0.44065552,61240.0,61231.0,0.001634]
[1727921617395,0.46626252,61240.0,61231.0,0.001634]
[1727921620908,0.44326252,61240.0,61231.0,0.001634]
[1727921621122,0.33070196,61240.0,61231.0,0.001634]
[1727921621617,0.30509496,61240.0,61231.0,0.001634]
[1727921624235,0.33070135,61240.0,61231.0,0.001634]
[1727921624584,0.30509496,61240.0,61231.0,0.001634]
[1727921624844,0.45081142,61240.0,61231.0,0.001634]
[1727921626805,0.42281142,61240.0,61231.0,0.001634]
[1727921627026,0.45081142,61240.0,61231.0,0.001634]
[1727921627477,0.45081142,61240.0,61231.0,0.081334]
[1727921627937,0.47641742,61240.0,61231.0,0.081334]
[1727921628412,0.45081142,61240.0,61231.0,0.081334]
[1727921629115,0.43681142,61240.0,61231.0,0.081334]
[1727921629583,0.44981142,61240.0,61231.0,0.081334]
[1727921629803,0.43581142,61240.0,61231.0,0.081334]
[1727921630015,0.42281142,61240.0,61231.0,0.081334]
[1727921630236,0.43681142,61240.0,61231.0,0.081334]
[1727921630459,0.43481142,61240.0,61231.0,0.081334]
[1727921630665,0.44881142,61240.0,61231.0,0.081334]
[1727921630887,0.28909496,61240.0,61231.0,0.081334]
[1727921631125,0.20309496,61240.0,61239.0,0.079134]
[1727921631353,0.22869978,61240.0,61239.0,0.079134]
[1727921632288,0.32869978,61240.0,61239.0,0.079134]
[1727921632526,0.31469978,61240.0,61239.0,0.079134]
[1727921633232,0.32869978,61240.0,61239.0,0.079134]
[1727921633464,0.30069978,61240.0,61239.0,0.079134]
[1727921633682,0.30969978,61240.0,61239.0,0.079134]
[1727921633905,0.31769978,61240.0,61239.0,0.079134]
[1727921634110,0.30069978,61240.0,61239.0,0.079134]
[1727921634545,0.31469978,61240.0,61239.0,0.079134]
[1727921634767,0.30669978,61240.0,61239.0,0.079134]
[1727921635892,0.30069978,61240.0,61239.0,0.079134]
[1727921636109,0.30669978,61240.0,61239.0,0.079134]
[1727921636557,0.30869978,61240.0,61239.0,0.079134]
[1727921637022,0.30469978,61240.0,61239.0,0.079134]
[1727921637466,0.31069978,61240.0,61239.0,0.079134]
[1727921637680,0.30469978,61240.0,61239.0,0.079134]
[1727921637912,0.30869978,61240.0,61239.0,0.079134]
[1727921638146,0.30469978,61240.0,61239.0,0.079134]
[1727921638348,0.30069978,61240.0,61239.0,0.079134]
[1727921638569,0.30469978,61240.0,61239.0,0.079134]
[1727921639407,0.30669978,61240.0,61239.0,0.079134]
[1727921639834,0.30069978,61240.0,61239.0,0.079134]
[1727921640047,0.20969978,61240.0,61239.0,0.0967242]
[1727921640263,0.21669978,61240.0,61239.0,0.0967242]
[1727921640470,0.21669978,61240.0,61239.0,0.079134]
[1727921640471,0.20769978,61240.0,61239.0,0.079134]
[1727921640949,0.20069978,61240.0,61239.0,0.079134]
[1727921641130,0.20969978,61240.0,61239.0,0.079134]
[1727921641336,0.21569978,61240.0,61239.0,0.0967242]
[1727921641557,0.20969978,61240.0,61239.0,0.079134]
[1727921642468,0.20069978,61240.0,61239.0,0.079134]
[1727921643165,0.20369978,61240.0,61239.0,0.079134]
[1727921644067,0.17809496,61240.0,61239.0,0.079134]
[1727921644306,0.17809496,61240.0,61239.0,0.0967242]
[1727921645944,0.17809496,61240.0,61239.0,0.079134]
[1727921647093,0.17509496,61240.0,61239.0,0.079134]
[1727921647527,0.17809496,61240.0,61239.0,0.079134]
[1727921647738,0.17509496,61240.0,61239.0,0.079134]
[1727921648158,0.17709496,61240.0,61239.0,0.079134]
[1727921650792,0.17709496,61240.0,61239.0,0.0967242]
[1727921651225,0.20269694,61240.0,61239.0,0.0967242]
[1727921651447,0.20269694,61240.0,61239.0,0.079134]
[1727921652560,0.03740594,61240.0,61239.0,0.242428]
[1727921652794,0.03840594,61240.0,61239.0,0.242428]
[1727921653019,0.03840594,61240.0,61239.0,0.079134]
[1727921653245,0.20169694,61240.0,61239.0,0.079134]
[1727921653471,0.20169694,61240.0,61239.0,0.001634]
[1727921654348,0.17609496,61240.0,61239.0,0.001634]
[1727921655654,0.17709496,61240.0,61239.0,0.001634]
[1727921656328,0.18409496,61240.0,61239.0,0.001634]
[1727921656506,0.19109496,61240.0,61239.0,0.001634]
[1727921656729,0.01880396,61240.0,61239.0,0.336228]
[1727921656940,0.007,61240.0,61239.0,0.336228]
[1727921657160,0.016,61240.0,61239.0,0.336228]
[1727921657591,0.016,61240.0,61239.0,0.368978]
[1727921657592,0.0416,61240.0,61239.0,0.368978]
[1727921658447,0.0346,61240.0,61239.0,0.368978]
[1727921658656,0.0316,61240.0,61239.0,0.368978]
[1727921658888,0.0366,61240.0,61239.0,0.368978]
[1727921659116,0.0256,61240.0,61239.0,0.368978]
[1727921659374,0.0266,61240.0,61239.0,0.368978]
[1727921659603,0.0276,61240.0,61239.0,0.38789183]
[1727921659843,0.0256,61240.0,61239.0,0.38789183]
[1727921660080,0.0256,61240.0,61239.0,0.368978]
[1727921660081,0.0266,61240.0,61239.0,0.368978]
[1727921660302,0.0276,61240.0,61239.0,0.38790297]
[1727921662723,0.0276,61240.0,61239.0,0.41809894]
[1727921662979,0.0276,61240.0,61239.0,0.58128565]
[1727921663218,0.0276,61240.0,61239.0,0.62341131]
[1727921663479,0.001638,61245.0,61244.0,0.366931]
[1727921663762,0.001638,61245.0,61244.0,0.77274392]
[1727921663970,0.001638,61245.0,61244.0,0.82155735]
[1727921664179,0.001638,61245.0,61244.0,0.84596407]
[1727921664401,0.001638,61245.0,61244.0,0.82158779]
[1727921664861,0.002638,61245.0,61244.0,0.87274392]
[1727921665371,0.24491195,61265.0,61246.0,0.03275]
[1727921665621,0.24491195,61265.0,61264.0,0.0754]
[1727921665839,0.001638,61268.0,61264.0,0.238626]
[1727921665840,0.164857,61268.0,61264.0,0.238626]
[1727921666059,0.001638,61268.0,61265.0,0.163223]
[1727921666520,0.001638,61268.0,61266.0,0.163221]
[1727921666739,0.02722832,61268.0,61264.0,0.238626]
[1727921666958,0.003,61265.0,61264.0,0.238626]
[1727921667405,0.166225,61265.0,61264.0,0.0754]
[1727921667696,0.004,61265.0,61264.0,0.0754]
[1727921668140,0.163228,61264.0,61260.0,0.163238]
[1727921668811,0.001,61265.0,61264.0,0.163227]
[1727921669042,0.001638,61268.0,61262.0,0.359211]
[1727921669483,0.001638,61268.0,61266.0,0.326445]
[1727921669725,0.001638,61268.0,61267.0,0.16322]
[1727921670387,0.164855,61268.0,61265.0,0.0755]
[1727921670606,0.001638,61268.0,61265.0,0.0755]
[1727921670848,0.02722707,61268.0,61265.0,0.0755]
[1727921671080,0.02722707,61268.0,61265.0,0.238724]
[1727921671771,0.03022707,61268.0,61265.0,0.238724]
[1727921671976,0.03022707,61268.0,61265.0,0.239724]
[1727921672199,0.02722707,61268.0,61265.0,0.239724]
[1727921672630,0.02722707,61268.0,61265.0,0.0795]
[1727921672846,0.02722707,61268.0,61265.0,0.242724]
[1727921673059,0.02722707,61268.0,61266.0,0.163222]
[1727921673293,0.01188614,61267.0,61265.0,0.0785]
[1727921673968,0.01188614,61267.0,61265.0,0.238724]
[1727921674432,0.01188614,61267.0,61265.0,0.240724]
[1727921674857,0.01188614,61267.0,61265.0,0.238724]
[1727921675078,0.01188614,61267.0,61265.0,0.242724]
[1727921675331,0.01188614,61267.0,61266.0,0.001]
[1727921675542,0.01188614,61267.0,61265.0,0.242724]
[1727921675757,0.01188614,61267.0,61265.0,0.244724]
[1727921676189,0.01188614,61267.0,61265.0,0.242724]
[1727921676400,0.01188614,61267.0,61266.0,0.002]
[1727921676612,0.01188614,61267.0,61265.0,0.242724]
[1727921676843,0.01188614,61267.0,61266.0,0.163222]
[1727921677055,0.001638,61268.0,61266.0,0.163222]
[1727921677271,0.001638,61268.0,61266.0,0.167222]
[1727921677483,0.01194038,61267.0,61266.0,0.004]
[1727921677933,0.01194038,61267.0,61265.0,0.240725]
[1727921678384,0.326403,61274.0,61262.0,0.359214]
[1727921678385,0.4758,61289.0,61266.0,0.58489866]
[1727921678618,0.24491195,61298.0,61289.0,0.243661]
[1727921678848,0.24491195,61298.0,61289.0,0.41604061]
[1727921679103,0.326261,61301.0,61289.0,0.243661]
[1727921679343,0.326244,61304.0,61289.0,0.243661]
[1727921679344,0.163127,61302.0,61289.0,0.243661]
[1727921679577,0.16313,61301.0,61289.0,0.243661]
[1727921679788,0.011818,61290.0,61289.0,0.244661]
[1727921680470,0.011818,61290.0,61289.0,0.277411]
[1727921680694,0.03739934,61290.0,61289.0,0.277411]
[1727921680916,0.03839934,61290.0,61289.0,0.285411]
[1727921681135,0.02739934,61290.0,61289.0,0.284411]
[1727921681359,0.02739934,61290.0,61289.0,0.286411]
[1727921681583,0.02639934,61290.0,61289.0,0.276411]
[1727921681805,0.02739934,61290.0,61289.0,0.284411]
[1727921682258,0.02839934,61290.0,61289.0,0.290411]
[1727921683637,0.002818,61290.0,61289.0,0.290411]
[1727921686810,0.02839393,61290.0,61289.0,0.290411]
[1727921687295,0.001636,61307.0,61289.0,0.290411]
[1727921687296,0.001636,61307.0,61296.0,0.163142]
[1727921687514,0.001636,61307.0,61296.0,0.60882832]
[1727921688862,0.001818,61297.0,61296.0,0.61782832]
[1727921690063,0.000818,61297.0,61296.0,0.60882832]
[1727921690986,0.000818,61297.0,61296.0,0.62282832]
[1727921691416,0.001818,61297.0,61296.0,0.63682832]
[1727921691629,0.02738993,61297.0,61296.0,0.63682832]
[1727921692091,0.02738993,61297.0,61296.0,0.66421832]
[1727921693220,0.02638993,61297.0,61296.0,0.63621832]
[1727921693654,0.02738993,61297.0,61296.0,0.65021832]
[1727921694095,0.02638993,61297.0,61296.0,0.63621832]
[1727921694314,0.000818,61297.0,61296.0,0.63621832]
[1727921694556,0.002818,61297.0,61296.0,0.66421832]
[1727921694795,0.002818,61297.0,61296.0,0.65021832]
[1727921695014,0.001818,61297.0,61296.0,0.65021832]
[1727921695258,0.001818,61297.0,61296.0,0.66421832]
[1727921695259,0.002818,61297.0,61296.0,0.66421832]
[1727921698877,0.001636,61307.0,61296.0,0.66421832]
[1727921698878,0.001636,61307.0,61306.0,0.163116]
[1727921699111,0.001636,61307.0,61306.0,0.277036]
[1727921699373,0.001636,61307.0,61306.0,0.44022271]
[1727921700129,0.002636,61307.0,61306.0,0.45422271]
[1727921700837,0.001636,61307.0,61306.0,0.44022271]
[1727921701062,0.002636,61307.0,61306.0,0.46622271]
[1727921701539,0.002636,61307.0,61306.0,0.177116]
[1727921701761,0.002636,61307.0,61306.0,0.028]
[1727921702008,0.002636,61307.0,61306.0,0.014]
[1727921702243,0.002636,61307.0,61306.0,0.177116]
[1727921702486,0.0367299,61307.0,61306.0,0.191116]
[1727921702729,0.0357299,61307.0,61306.0,0.195836]
[1727921702970,0.0357299,61307.0,61306.0,0.209836]
[1727921703390,0.0357299,61307.0,61306.0,0.195836]
[1727921703637,0.0357299,61307.0,61296.0,0.24491195]
[1727921703865,0.1988429,61307.0,61306.0,0.008]
[1727921704093,0.1988429,61307.0,61306.0,0.019]
[1727921704330,0.1988429,61307.0,61306.0,0.008]
[1727921704526,0.1988429,61307.0,61297.0,0.326279]
[1727921704527,0.163119,61305.0,61301.0,0.163129]
[1727921704782,0.3619589,61307.0,61303.0,0.24491195]
[1727921704783,0.163121,61304.0,61303.0,0.24491195]
[1727921705003,0.17160608,61304.0,61303.0,0.24491195]
[1727921705222,0.00848508,61304.0,61300.0,0.03272]
[1727921705455,0.163117,61306.0,61301.0,0.195849]
[1727921705682,0.17160408,61305.0,61301.0,0.195849]
[1727921705967,0.17160408,61305.0,61303.0,0.002]
[1727921707047,0.17160408,61305.0,61304.0,0.24491195]
[1727921707048,0.00848508,61305.0,61304.0,0.24491195]
[1727921707283,0.02720851,61307.0,61306.0,0.163116]
[1727921707523,0.02720851,61307.0,61304.0,0.163119]
[1727921707762,0.02720851,61307.0,61303.0,0.326248]
[1727921707763,0.03564627,61307.0,61305.0,0.163117]